{"text_format":"1","workbook":"xlsx","n_sheets":8,"sheets":["سود سپرده","تعدیل سود","وجه التزام","مبادله ای","قرض الحسنه","مشارکت","خریددین","ضمانتنامه"],"not_rendered":{"charts":0,"images":0,"macros":1,"external_links":0,"defined_names":0,"comments":0,"pivot_tables":0},"unopened":[],"bounds":{"document_bytes":16777216,"sheet_cells":100000,"rows_first":2000,"rows_last":500,"rows_between":2000,"halvings":0,"cell_chars":16384,"cell_head_chars":4096},"cells_cut":0,"cells_raw":0,"read":"whole","date_system":"1900"}

{"sheet":"سود سپرده","index":0,"n_rows":8,"n_cols":3,"rows_kept":8,"cut":false,"hidden":false,"merged":[[1,1,1,2],[2,1,2,2]]}
[]
[null,"گروه کامپیوتری توانا   tavanacg.blog.ir"]
[null,"محاسبات سود سپرده مدت‌دار"]
[null,"مبلغ سپرده به ریال",500000000]
[null,"تعداد روز سپرده‌گذاری",30]
[null,"نرخ سود علی الحساب",0.2]
[null,"مبلغ سود (سال عادی)",{"$f":"C4*C5*C6/365","v":8219178.0821917811}]
[null,"مبلغ سود (سال کبیسه)",{"$f":"C4*C5*C6/366","v":8196721.3114754101}]

{"sheet":"تعدیل سود","index":1,"n_rows":11,"n_cols":3,"rows_kept":11,"cut":false,"hidden":false,"merged":[[2,1,2,2],[1,1,1,2]]}
[]
[null,"گروه کامپیوتری توانا   tavanacg.blog.ir"]
[null,"محاسبات تعدیل سود سپرده بلندمدت"]
[null,"مبلغ سپرده به ریال",500000000]
[null,"تعداد روز سپرده‌گذاری",111]
[null,"نرخ سود پرداخت شده",0.2]
[null,"نرخ سود قابل پرداخت",9.5000000000000001E-2]
[null,"کل سود پرداخت شده",{"$f":"C4*C5*C6/365","v":30410958.90410959}]
[null,"کل سود تعلق گرفته",{"$f":"C4*C5*C7/365","v":14445205.479452055}]
[null,"مبلغ تعدیل سود",{"$f":"C8-C9","v":15965753.424657535}]
[null,"مبلغ قابل پرداخت",{"$f":"C4-C10","v":484034246.57534248}]

{"sheet":"وجه التزام","index":2,"n_rows":8,"n_cols":3,"rows_kept":8,"cut":false,"hidden":false,"merged":[[2,1,2,2],[1,1,1,2]]}
[]
[null,"گروه کامپیوتری توانا   tavanacg.blog.ir"]
[null,"محاسبات وجه التزام (جریمه تأخیر)"]
[null,"مبلغ اقساط به ریال",10000000]
[null,"نرخ سود تسهیلات",0.18]
[null,"درصد وجه التزام",0.06]
[null,"مدت تأخیر به روز",60]
[null,"مبلغ وجه التزام",{"$f":"(C4*(C5+C6)*C7)/365","v":394520.54794520547}]

{"sheet":"مبادله ای","index":3,"n_rows":13,"n_cols":6,"rows_kept":13,"cut":false,"hidden":false,"merged":[[2,1,2,2],[1,1,1,2]]}
[]
[null,"گروه کامپیوتری توانا   tavanacg.blog.ir"]
[null,"محاسبات تسهیلات مبادله ای (فروش اقساطی، مرابحه و ...)"]
[null,"مبلغ تسهیلات به ریال",500000000]
[null,"نرخ سود",0.18]
[null,"تعداد اقساط",60]
[null,"درصد وثیقه",1.4,null,"شماره قسط",1]
[null,"مبلغ قسط ماهیانه",{"$f":"(((C4*C5)/12)*((1+(C5/12))^C6))/(((1+(C5/12))^C6)-1)","v":12696713.713554617},null,"مبلغ اصل قسط",{"$f":"((1+C5/12)^(F7-1))*(C8-C4*C5/12)","v":5196713.713554617}]
[null,"مبلغ سود",{"$f":"(C6*C8)-C4","v":261802822.81327701},null,"مبلغ سود قسط",{"$f":"C8-F8","v":7500000}]
[null,"کل مبلغ دریافتی (اصل+سود)",{"$f":"C4+C9","v":761802822.81327701}]
[null,"مبلغ وثیقه",{"$f":"C10*C7","v":1066523951.9385878}]
[null,"ضریب حقوق",3]
[null,"مبلغ خالص حقوق دریافتی",{"$f":"C8*C12","v":38090141.140663847}]

{"sheet":"قرض الحسنه","index":4,"n_rows":10,"n_cols":3,"rows_kept":10,"cut":false,"hidden":false,"merged":[[2,1,2,2],[1,1,1,2]]}
[]
[null,"گروه کامپیوتری توانا   tavanacg.blog.ir"]
[null,"محاسبات تسهیلات قرض الحسنه"]
[null,"مبلغ تسهیلات به  ریال",500000000]
[null,"نرخ کارمزد",0.04]
[null,"تعداد اقساط",84]
[null,"درصد وثیقه",1.4]
[null,"قسط ماهیانه",{"$f":"C4/(C6-ROUNDUP(C6/12,0))","v":6493506.493506493}]
[null,"کارمزد",{"$f":"karmozd(C4,C5,C6,C8)","v":74545454.545454547}]
[null,"مبلغ وثیقه",{"$f":"C4*C7","v":700000000}]

{"sheet":"مشارکت","index":5,"n_rows":10,"n_cols":3,"rows_kept":10,"cut":false,"hidden":false,"merged":[[2,1,2,2],[1,1,1,2]]}
[]
[null,"گروه کامپیوتری توانا   tavanacg.blog.ir"]
[null,"محاسبات تسهیلات مشارکتی (مضاربه، مشارکت مدنی و ...)"]
[null,"مبلغ تسهیلات به ریال",1000000000]
[null,"نرخ سود",0.18]
[null,"مدت به روز",120]
[null,"درصد وثیقه",1.4]
[null,"حداقل سود مورد انتظار بانک",{"$f":"(C4*C5*C6)/365","v":59178082.19178082}]
[null,"مبلغ دریافتی (اصل+سود)",{"$f":"C4+C8","v":1059178082.1917808}]
[null,"مبلغ وثیقه",{"$f":"C9*C7","v":1482849315.0684931}]

{"sheet":"خریددین","index":6,"n_rows":10,"n_cols":3,"rows_kept":10,"cut":false,"hidden":false,"merged":[[2,1,2,2],[1,1,1,2]]}
[]
[null,"گروه کامپیوتری توانا   tavanacg.blog.ir"]
[null,"محاسبات خرید دین"]
[null,"مبلغ اوراق یا اسناد تجاری به  ریال",1000000000]
[null,"نرخ تنزیل",0.18]
[null,"مدت به روز",150]
[null,"درصد وثیقه",1.4]
[null,"سود مورد انتظار بانک",{"$f":"(C4*C5*C6)/365","v":73972602.739726022}]
[null,"مبلغ خرید اوراق یا اسناد تجاری",{"$f":"C4-C8","v":926027397.26027393}]
[{"$f":"C10=C13","v":false},"مبلغ وثیقه",{"$f":"C9*C7","v":1296438356.1643834}]

{"sheet":"ضمانتنامه","index":7,"n_rows":11,"n_cols":3,"rows_kept":11,"cut":false,"hidden":false,"merged":[[2,1,2,2],[1,1,1,2]]}
[]
[null,"گروه کامپیوتری توانا   tavanacg.blog.ir"]
[null,"محاسبات ضمانتنامه"]
[null,"مبلغ ضمانتنامه به ریال",1000000000]
[null,"درصد پیش دریافت",0.1]
[null,"مدت به روز",180]
[null,"نرخ کارمزد",2.5000000000000001E-2]
[null,"درصد وثیقه",0.1]
[null,"مبلغ پیش دریافت",{"$f":"C4*C5","v":100000000}]
[null,"مبلغ کارمزد",{"$f":"(C4-C9)*C7*C6/365","v":11095890.410958905}]
[null,"مبلغ وثیقه",{"$f":"(C4-C9)*C8","v":90000000}]